bitfinex/quotes_SOLUSD_20241226
["timestamp","ask_amount","ask_price","bid_price","bid_amount"]
[1735254485471,12.41043476,187.85,187.78,12.41043476]
[1735254485876,2.94259301,187.88,187.78,12.41043476]
[1735254486083,12.41043476,187.87,187.79,12.41043476]
[1735254486690,12.41043476,187.86,187.79,12.41043476]
[1735254487393,12.41043476,187.87,187.79,12.41043476]
[1735254487580,12.41043476,187.87,187.8,12.41043476]
[1735254487771,12.41043476,187.86,187.79,12.41043476]
[1735254487968,12.41043476,187.87,187.79,12.41043476]
[1735254488191,19.82201677,187.87,187.8,19.82201677]
[1735254489001,1.9468,187.88,187.81,19.82201677]
[1735254489304,19.82201677,187.93,187.85,19.82201677]
[1735254489791,19.82201677,187.94,187.87,19.82201677]
[1735254490001,19.82201677,187.94,187.81,0.798242]
[1735254490002,19.82201677,187.95,187.88,19.82201677]
[1735254490366,19.82201677,187.96,187.89,19.82201677]
[1735254490599,19.82201677,187.97,187.89,19.82201677]
[1735254490975,19.82201677,187.97,187.9,19.82201677]
[1735254491168,19.82201677,187.98,187.9,19.82201677]
[1735254491504,19.82201677,187.97,187.89,19.82201677]
[1735254491688,19.82201677,187.94,187.86,19.82201677]
[1735254492111,19.82201677,187.94,187.87,19.82201677]
[1735254492310,19.82201677,187.95,187.87,19.82201677]
[1735254492478,19.82201677,187.95,187.88,19.82201677]
[1735254492674,2.94259301,187.99,187.88,19.82201677]
[1735254492874,19.82201677,187.98,187.91,19.94750677]
[1735254493087,19.82201677,188.0,187.92,19.82201677]
[1735254493574,19.82201677,188.0,187.93,19.82201677]
[1735254493779,19.82201677,188.01,187.93,19.82201677]
[1735254494087,19.82201677,187.97,187.9,19.82201677]
[1735254494286,19.82201677,187.97,187.89,33.12721677]
[1735254494467,19.82201677,187.97,187.9,19.94750677]
[1735254495205,19.82201677,187.97,187.89,19.82201677]
[1735254495454,19.82201677,187.97,187.9,19.82201677]
[1735254495713,19.82201677,187.98,187.9,19.82201677]
[1735254495882,19.82201677,187.99,187.92,19.82201677]
[1735254496206,19.82201677,188.0,187.92,19.82201677]
[1735254496369,19.82201677,188.0,187.93,19.82201677]
[1735254497209,19.82201677,188.0,187.92,19.82201677]
[1735254498316,0.99579301,188.04,187.96,19.82201677]
[1735254498317,19.82201677,188.04,187.96,19.82201677]
[1735254498684,19.82201677,188.0,187.92,19.82201677]
[1735254499010,19.82201677,188.02,187.94,19.82201677]
[1735254500520,19.82201677,188.02,187.95,19.82201677]
[1735254500719,19.82201677,188.02,187.94,19.82201677]
[1735254502518,19.82201677,188.02,187.95,19.82201677]
[1735254503000,1.9468,188.05,187.98,19.82201677]
[1735254503323,26.30631677,188.09,188.01,19.82201677]
[1735254503522,19.82201677,188.1,188.03,19.82201677]
[1735254503820,19.82201677,188.11,188.04,19.82201677]
[1735254504218,6.91679301,188.15,188.03,19.82201677]
[1735254504219,19.82201677,188.1,188.03,19.82201677]
[1735254504424,19.82201677,188.07,188.0,19.82201677]
[1735254504923,19.82201677,188.07,188.0,0.12549]
[1735254505136,19.82201677,188.07,188.0,19.94750677]
[1735254505292,19.82201677,188.08,188.01,19.82201677]
[1735254505990,19.82201677,188.06,187.99,19.82201677]
[1735254506204,19.82201677,188.05,187.98,19.82201677]
[1735254506418,19.82201677,188.06,187.98,19.82201677]
[1735254507132,19.82201677,188.06,187.99,19.82201677]
[1735254507532,19.82201677,188.04,187.97,19.82201677]
[1735254507706,2.93059301,188.05,187.94,19.82201677]
[1735254507707,19.82201677,188.01,187.94,19.82201677]
[1735254508335,12.37071346,188.01,187.94,12.37071346]
[1735254510034,12.37071346,188.0,187.93,12.37071346]
[1735254510240,12.37071346,187.99,187.91,12.37071346]
[1735254510541,12.37071346,187.96,187.89,12.37071346]
[1735254510706,12.37071346,187.95,187.88,12.37071346]
[1735254511027,12.37071346,187.98,187.91,12.37071346]
[1735254511204,12.37071346,187.99,187.92,12.37071346]
[1735254511403,12.37071346,187.99,187.91,12.37071346]
[1735254511628,12.37071346,187.97,187.91,0.12549]
[1735254511930,14.31461346,187.95,187.84,6.90254157]
[1735254512134,13.36650647,187.94,187.86,12.37071346]
[1735254512426,12.37071346,187.91,187.83,12.37071346]
[1735254512617,12.37071346,187.89,187.82,12.37071346]
[1735254513435,12.37071346,187.88,187.81,0.12549]
[1735254513737,12.37071346,187.88,187.8,12.37071346]
[1735254514935,12.37071346,187.89,187.82,12.37071346]
[1735254515142,12.37071346,187.9,187.82,12.37071346]
[1735254515327,12.37071346,187.91,187.84,12.37071346]
[1735254515733,12.37071346,187.9,187.83,12.37071346]
[1735254516043,12.37071346,187.89,187.82,12.37071346]
[1735254516242,12.37071346,187.88,187.78,6.075]
[1735254516412,12.37071346,187.88,187.81,12.37071346]
[1735254516927,12.37071346,187.87,187.8,12.37071346]
[1735254517420,12.37071346,187.87,187.8,0.12549]
[1735254517643,12.37071346,187.86,187.78,12.37071346]
[1735254517982,12.37071346,187.83,187.76,12.37071346]
[1735254518114,12.37071346,187.84,187.77,12.37071346]
[1735254518313,12.37071346,187.84,187.76,12.37071346]
[1735254519140,12.37071346,187.82,187.75,0.12549]
[1735254519359,12.37071346,187.82,187.75,12.37071346]
[1735254519649,12.37071346,187.82,187.75,0.12549]
[1735254521352,12.37071346,187.81,187.75,0.12549]
[1735254521950,0.99579301,187.85,187.72,12.37071346]
[1735254522118,1.9439,187.84,187.72,12.37071346]
[1735254522322,12.37071346,187.83,187.76,12.37071346]
[1735254522559,2.93969301,187.84,187.76,12.37071346]
[1735254522560,14.31461346,187.84,187.76,12.37071346]
[1735254522844,14.31461346,187.84,187.77,12.37071346]
[1735254523041,1.9439,187.84,187.78,12.37071346]
[1735254523641,12.37071346,187.83,187.75,13.29475961]
[1735254523844,12.37071346,187.81,187.73,12.37071346]
[1735254524348,12.37071346,187.8,187.74,0.12549]
[1735254524551,2.93969301,187.84,187.67,0.79855615]
[1735254524755,12.37071346,187.76,187.69,12.37071346]
[1735254524963,12.37071346,187.76,187.68,12.37071346]
[1735254525266,12.37071346,187.76,187.69,0.12549]
[1735254526161,19.84646486,187.76,187.69,0.12549]
[1735254526454,3.9933,187.81,187.67,19.84646486]
[1735254526455,19.84646486,187.75,187.67,19.84646486]
[1735254527334,19.84646486,187.73,187.66,19.97195486]
[1735254527969,19.84646486,187.73,187.66,0.12549]
[1735254528371,19.84646486,187.73,187.66,19.97195486]
[1735254531454,6.1571,187.76,187.66,19.97195486]
[1735254531455,19.84646486,187.74,187.66,19.97195486]
[1735254533079,19.84646486,187.74,187.63,19.84646486]
[1735254533080,19.84646486,187.7,187.63,19.84646486]
[1735254533244,19.84646486,187.7,187.62,19.84646486]
[1735254534083,19.84646486,187.7,187.64,0.12549]
[1735254534247,19.84646486,187.7,187.62,19.84646486]
[1735254534442,19.84646486,187.7,187.63,0.12549]
[1735254534757,19.84646486,187.69,187.63,0.12549]
[1735254535150,19.84646486,187.69,187.61,19.84646486]
[1735254535361,19.84646486,187.68,187.6,19.84646486]
[1735254536406,0.99579301,187.71,187.58,19.84646486]
[1735254536407,19.84646486,187.66,187.58,19.84646486]
[1735254537377,19.84646486,187.66,187.59,0.12549]
[1735254537876,19.84646486,187.66,187.58,19.84646486]
[1735254539045,19.84646486,187.66,187.59,0.12549]
[1735254539344,19.84646486,187.68,187.6,19.84646486]
[1735254539675,0.99579301,187.67,187.6,19.84646486]
[1735254539858,19.84646486,187.68,187.6,19.84646486]
[1735254540271,0.99579301,187.67,187.6,19.84646486]
[1735254540678,19.84646486,187.68,187.6,19.84646486]
[1735254541179,19.84646486,187.7,187.63,0.12549]
[1735254541350,19.84646486,187.72,187.64,19.84646486]
[1735254541551,20.84225787,187.73,187.65,19.84646486]
[1735254541783,21.79036486,187.74,187.67,19.84646486]
[1735254542278,19.84646486,187.73,187.66,19.84646486]
[1735254543378,19.84646486,187.76,187.69,19.97195486]
[1735254543564,19.84646486,187.78,187.71,19.84646486]
[1735254543805,19.84646486,187.75,187.68,19.84646486]
[1735254544777,19.84646486,187.75,187.67,19.97195486]
[1735254545073,19.84646486,187.74,187.67,19.84646486]
[1735254546161,0.99579301,187.79,187.69,12.40377631]
[1735254546360,12.40377631,187.76,187.69,12.40377631]
[1735254546570,12.40377631,187.77,187.69,12.40377631]
[1735254547269,5.9871,187.8,187.67,0.12549]
[1735254547270,12.40377631,187.78,187.71,12.40377631]
[1735254548458,12.40377631,187.79,187.71,12.40377631]
[1735254549474,13.39956932,187.78,187.69,12.40377631]
[1735254549990,12.40377631,187.76,187.69,12.40377631]
[1735254550551,12.40377631,187.77,187.69,12.40377631]
[1735254551461,12.40377631,187.77,187.7,12.40377631]
[1735254552484,12.40377631,187.77,187.71,0.12549]
[1735254552672,12.40377631,187.78,187.71,12.40377631]
[1735254554753,12.40377631,187.76,187.67,12.40377631]
[1735254555073,12.40377631,187.74,187.67,12.40377631]
[1735254555406,12.40377631,187.76,187.67,12.40377631]
[1735254555564,12.40377631,187.76,187.68,0.12549]
[1735254556584,12.40377631,187.78,187.69,12.40377631]
[1735254556768,0.99579301,187.77,187.69,12.40377631]
[1735254557087,12.40377631,187.76,187.67,12.52926631]
[1735254557281,12.40377631,187.74,187.66,6.5052]
[1735254557586,0.99579301,187.73,187.66,6.5052]
[1735254557785,12.40377631,187.72,187.65,12.40377631]
[1735254557958,3.9944,187.76,187.63,12.40377631]
[1735254557959,12.40377631,187.7,187.63,12.40377631]
[1735254558274,0.99579301,187.69,187.62,0.12549]
[1735254558455,0.99579301,187.69,187.61,18.70177631]
[1735254558873,12.40377631,187.66,187.57,1.9162]
[1735254559083,12.40377631,187.66,187.58,12.40377631]
[1735254559866,0.99579301,187.69,187.58,12.40377631]
[1735254560077,12.40377631,187.66,187.58,12.40377631]
[1735254560378,0.99579301,187.65,187.58,12.40377631]
[1735254561485,12.40377631,187.64,187.56,18.70177631]
[1735254561785,12.40377631,187.64,187.57,0.12549]
[1735254562084,12.40377631,187.66,187.58,12.40377631]
[1735254563163,0.99579301,187.65,187.58,12.40377631]
[1735254563369,12.40377631,187.66,187.58,12.40377631]
[1735254563842,0.99579301,187.65,187.58,12.40377631]
[1735254563972,12.40377631,187.64,187.58,12.40377631]
[1735254564281,12.40377631,187.6,187.52,12.40377631]
[1735254564489,12.40377631,187.6,187.54,12.40377631]
[1735254564684,12.40377631,187.62,187.54,12.40377631]
[1735254564888,12.40377631,187.6,187.53,12.40377631]
[1735254565068,0.99579301,187.59,187.51,12.40377631]
[1735254565272,12.40377631,187.6,187.53,12.40377631]
[1735254565481,0.99579301,187.59,187.53,12.40377631]
[1735254566988,12.40377631,187.57,187.49,12.40377631]
[1735254567163,13.39956932,187.56,187.48,18.70177631]
[1735254568066,13.39956932,187.56,187.48,12.40377631]
[1735254568260,0.99579301,187.56,187.49,12.40377631]
[1735254568795,0.99579301,187.56,187.44,7.09786405]
[1735254568796,0.99579301,187.56,187.5,12.40377631]
[1735254569092,13.39956932,187.57,187.5,12.40377631]
[1735254569269,0.99579301,187.56,187.49,12.40377631]
[1735254570510,13.39956932,187.56,187.49,12.40377631]
[1735254571363,0.99579301,187.56,187.49,12.40377631]
[1735254571566,12.40377631,187.58,187.51,12.40377631]
[1735254571766,13.39956932,187.57,187.5,12.40377631]
[1735254572190,12.40377631,187.57,187.5,12.40377631]
[1735254572387,12.40377631,187.59,187.51,12.40377631]
[1735254572690,0.99579301,187.58,187.51,12.40377631]
[1735254572875,13.39956932,187.58,187.51,12.40377631]
[1735254575194,12.40377631,187.6,187.53,12.40377631]
[1735254576000,12.40377631,187.6,187.52,12.40377631]
[1735254576195,13.39956932,187.59,187.52,12.40377631]
[1735254576398,12.40377631,187.58,187.5,12.40377631]
[1735254576693,12.40377631,187.59,187.51,12.40377631]
[1735254576893,12.40377631,187.59,187.52,12.40377631]
[1735254577294,12.40377631,187.6,187.52,12.40377631]
[1735254577498,13.39956932,187.6,187.53,12.40377631]
[1735254577898,13.39956932,187.6,187.52,12.40377631]
[1735254578896,12.40377631,187.59,187.51,12.40377631]
[1735254579283,12.40377631,187.59,187.52,12.40377631]
[1735254580096,0.99579301,187.58,187.52,12.40377631]
[1735254580396,0.99579301,187.58,187.51,12.40377631]
[1735254580701,12.40377631,187.56,187.48,12.40377631]
[1735254580892,12.40377631,187.56,187.49,12.40377631]
[1735254581099,12.40377631,187.57,187.49,12.40377631]
[1735254581278,13.39956932,187.56,187.49,12.40377631]
[1735254583009,0.99579301,187.56,187.49,12.40377631]
[1735254583295,12.40377631,187.58,187.5,12.40377631]
[1735254583502,0.99579301,187.57,187.5,12.40377631]
[1735254586102,13.39956932,187.57,187.5,12.40377631]
[1735254586598,12.40377631,187.55,187.48,12.40377631]
[1735254586790,0.99579301,187.54,187.48,12.40377631]
[1735254586989,0.99579301,187.54,187.49,12.40377631]
[1735254587191,0.99579301,187.55,187.49,12.40377631]
[1735254587500,0.99579301,187.55,187.5,12.40377631]
[1735254587698,0.99579301,187.56,187.5,12.40377631]
[1735254588309,12.40377631,187.57,187.5,12.40377631]
[1735254588619,13.39956932,187.56,187.49,12.40377631]
[1735254590310,12.40377631,187.55,187.49,12.40377631]
[1735254590479,0.99579301,187.54,187.49,12.40377631]
[1735254591603,0.99579301,187.55,187.49,12.40377631]
[1735254592208,0.99579301,187.55,187.49,7.95548465]
[1735254592904,0.99579301,187.59,187.52,7.95548465]
[1735254593208,8.95127766,187.59,187.53,7.95548465]
[1735254594217,13.42176042,187.59,187.53,12.42596741]
[1735254595406,13.42176042,187.59,187.52,12.42596741]
[1735254596215,12.42596741,187.58,187.52,12.42596741]
[1735254596599,0.99579301,187.57,187.52,12.42596741]
[1735254597022,12.42596741,187.58,187.52,12.42596741]
[1735254597718,0.99579301,187.57,187.52,12.42596741]
[1735254598296,12.42596741,187.58,187.52,12.42596741]
[1735254598821,0.99579301,187.57,187.52,12.42596741]
[1735254598996,0.99579301,187.57,187.49,12.42596741]
[1735254599199,12.42596741,187.57,187.5,12.42596741]
[1735254599500,12.42596741,187.58,187.5,12.42596741]
[1735254599817,0.99579301,187.57,187.5,12.42596741]
[1735254600321,0.99579301,187.57,187.51,12.42596741]
[1735254602092,13.42176042,187.57,187.5,12.42596741]
[1735254602328,12.42596741,187.56,187.49,12.42596741]
[1735254602490,0.99579301,187.55,187.49,12.42596741]
[1735254603408,12.42596741,187.57,187.51,12.42596741]
[1735254603721,5.9422,187.61,187.45,13.46229]
[1735254603722,13.42176042,187.56,187.49,12.42596741]
[1735254605208,0.99579301,187.56,187.5,12.42596741]
[1735254605412,12.42596741,187.59,187.53,12.42596741]
[1735254605591,13.42176042,187.58,187.51,12.42596741]
[1735254607322,0.99579301,187.58,187.51,12.42596741]
[1735254608712,13.42176042,187.58,187.51,12.42596741]
[1735254609231,0.99579301,187.58,187.51,12.42596741]
[1735254609431,12.42596741,187.59,187.51,12.42596741]
[1735254610102,0.99579301,187.58,187.51,12.42596741]
[1735254610301,12.42596741,187.59,187.51,12.42596741]
[1735254610526,0.99579301,187.58,187.51,12.42596741]
[1735254611219,12.42596741,187.59,187.52,12.42596741]
[1735254611393,1.9445,187.61,187.58,12.42596741]
[1735254611593,12.42596741,187.6,187.51,0.79960814]
[1735254611860,12.42596741,187.55,187.48,12.42596741]
[1735254612337,13.42176042,187.54,187.46,12.42596741]
[1735254612544,14.37516741,187.53,187.46,12.42596741]
[1735254612837,0.99579301,187.52,187.46,12.42596741]
[1735254613011,1.9492,187.53,187.46,12.42596741]
[1735254613200,2.94499301,187.53,187.47,12.42596741]
[1735254613398,1.9492,187.53,187.47,12.42596741]
[1735254613634,1.94499301,187.53,187.47,12.42596741]
[1735254613806,0.9492,187.53,187.47,12.42596741]
[1735254614314,1.94499301,187.53,187.47,7.95773972]
[1735254614720,7.95773972,187.51,187.39,21.58815659]
[1735254614917,8.95353273,187.5,187.4,8.24715659]
[1735254615121,7.95773972,187.49,187.42,7.95773972]
[1735254615309,7.95773972,187.5,187.43,7.95773972]
[1735254615507,0.99579301,187.49,187.43,7.95773972]
[1735254615741,7.95773972,187.51,187.44,7.95773972]
[1735254616053,0.99579301,187.5,187.44,7.95773972]
[1735254617120,8.95353273,187.5,187.43,7.95773972]
[1735254619031,8.95353273,187.5,187.42,7.95773972]
[1735254619732,8.95353273,187.5,187.43,7.95773972]
[1735254621142,1.94499301,187.53,187.45,7.95773972]
[1735254621311,0.9492,187.53,187.49,7.95773972]
[1735254621708,8.95353273,187.57,187.5,7.95773972]
[1735254622418,8.95353273,187.57,187.44,0.79983629]
[1735254622419,15.93153972,187.58,187.51,7.95773972]
[1735254623734,7.95773972,187.63,187.56,7.95773972]
[1735254624537,7.95773972,187.6,187.53,7.95773972]
[1735254624830,7.95773972,187.59,187.49,2.0233]
[1735254625033,8.95353273,187.59,187.51,7.95773972]
[1735254625828,7.95773972,187.58,187.51,7.95773972]
[1735254626132,7.95773972,187.58,187.45,8.24715659]
[1735254626133,7.95773972,187.54,187.45,8.24715659]
[1735254626431,8.95353273,187.53,187.46,7.95773972]
[1735254626644,7.95773972,187.53,187.46,7.95773972]
[1735254626844,7.95773972,187.54,187.47,7.95773972]
[1735254627207,0.99579301,187.53,187.47,7.95773972]
[1735254627407,8.95353273,187.53,187.46,7.95773972]
[1735254627936,7.95773972,187.51,187.41,8.24715659]
[1735254628136,0.99579301,187.5,187.44,12.43745628]
[1735254628516,12.43745628,187.52,187.45,12.43745628]
[1735254628749,0.99579301,187.51,187.45,12.43745628]
[1735254630043,13.43324929,187.51,187.44,12.43745628]
[1735254630230,12.43745628,187.5,187.43,12.43745628]
[1735254630413,0.99579301,187.49,187.43,12.43745628]
[1735254632422,12.43745628,187.49,187.42,12.43745628]
[1735254632629,13.43324929,187.48,187.41,12.43745628]
[1735254632841,13.43324929,187.48,187.42,12.43745628]
[1735254633532,0.99579301,187.48,187.43,12.43745628]
[1735254633716,0.99579301,187.48,187.35,8.24715659]
[1735254633717,12.43745628,187.45,187.35,8.24715659]
[1735254633912,12.43745628,187.45,187.38,12.43745628]
[1735254634131,12.43745628,187.45,187.35,8.24715659]
[1735254634132,12.43745628,187.46,187.39,12.43745628]
[1735254634541,0.99579301,187.45,187.39,12.43745628]
[1735254634741,0.99579301,187.45,187.38,12.43745628]
[1735254634742,13.43324929,187.45,187.38,12.43745628]
[1735254635443,0.99579301,187.45,187.39,12.43745628]
[1735254635619,13.43324929,187.45,187.38,12.43745628]
[1735254636541,0.99579301,187.45,187.38,12.43745628]
[1735254636841,13.43324929,187.45,187.38,12.43745628]
[1735254637817,0.99579301,187.45,187.38,12.43745628]
[1735254638147,12.43745628,187.48,187.41,12.43745628]
[1735254638327,0.99579301,187.47,187.41,12.43745628]
[1735254638950,13.43324929,187.47,187.41,12.43745628]
[1735254641539,0.99579301,187.47,187.41,12.43745628]
[1735254642642,12.43745628,187.48,187.42,12.43745628]
[1735254642844,1.8948,187.49,187.42,12.43745628]
[1735254642845,0.99579301,187.47,187.42,12.43745628]
[1735254643047,0.99579301,187.48,187.43,12.43745628]
[1735254643222,0.99579301,187.48,187.42,12.43745628]
[1735254643624,1.8948,187.49,187.44,12.43745628]
[1735254643824,3.9987,187.56,187.45,12.43745628]
[1735254643825,12.43745628,187.52,187.45,12.43745628]
[1735254644037,0.99579301,187.51,187.45,12.43745628]
[1735254644240,13.43324929,187.51,187.44,12.43745628]
[1735254645579,0.99579301,187.51,187.45,12.43745628]
[1735254646448,12.43745628,187.52,187.45,12.43745628]
[1735254646638,13.43324929,187.51,187.44,12.43745628]
[1735254646838,1.8948,187.54,187.48,12.43745628]
[1735254647134,12.43745628,187.57,187.5,12.43745628]
[1735254647338,15.33284929,187.58,187.51,12.43745628]
[1735254647539,15.33284929,187.58,187.5,12.43745628]
[1735254647540,12.43745628,187.57,187.5,12.43745628]
[1735254648152,7.95451297,187.57,187.5,7.95451297]
[1735254648645,9.85411297,187.58,187.51,7.95451297]
[1735254649648,7.95451297,187.54,187.44,13.3374]
[1735254649847,8.95030598,187.53,187.46,7.95451297]
[1735254650042,8.95030598,187.53,187.42,8.37126279]
[1735254650043,7.95451297,187.51,187.42,8.37126279]
[1735254650238,12.43820261,187.49,187.42,20.8094654]
[1735254650443,12.43820261,187.49,187.41,12.43820261]
[1735254650748,12.43820261,187.49,187.42,12.43820261]
[1735254651555,14.33780261,187.5,187.43,12.43820261]
[1735254652154,1.8996,187.5,187.45,12.43820261]
[1735254652351,6.5598,187.52,187.46,12.43820261]
[1735254655165,14.40050261,187.54,187.47,12.43820261]
[1735254656044,12.43820261,187.51,187.44,12.43820261]
[1735254656370,12.43820261,187.49,187.41,12.43820261]
[1735254656537,0.99579301,187.48,187.41,12.43820261]
[1735254657461,12.43820261,187.47,187.4,12.43820261]
[1735254657643,13.43399562,187.46,187.39,12.43820261]
[1735254658544,12.93399562,187.46,187.39,12.43820261]
[1735254659437,14.89629562,187.46,187.39,12.43820261]
[1735254660258,1.9623,187.46,187.4,12.43820261]
[1735254660459,1.9623,187.46,187.41,12.43820261]
[1735254661266,1.9623,187.46,187.44,12.43820261]
[1735254661437,1.9623,187.51,187.45,12.43820261]
[1735254661641,1.9623,187.51,187.47,12.43820261]
[1735254662056,12.43820261,187.56,187.49,12.43820261]
[1735254662257,2.0138,187.57,187.52,12.43820261]
[1735254662638,2.0138,187.57,187.53,12.43820261]
[1735254663359,6.1494,187.59,187.53,12.43820261]
[1735254663771,12.43820261,187.6,187.53,12.43820261]
[1735254664060,2.50959301,187.62,187.55,12.43820261]
[1735254664282,8.65899301,187.67,187.58,12.43820261]
[1735254664452,12.43820261,187.65,187.58,12.43820261]
[1735254664654,12.93399562,187.64,187.56,12.43820261]
[1735254665258,12.43820261,187.59,187.52,12.43820261]
[1735254665449,12.43820261,187.59,187.51,12.43820261]
[1735254665648,12.43820261,187.57,187.5,12.43820261]
[1735254665850,12.93399562,187.56,187.48,12.43820261]
[1735254666074,12.43820261,187.55,187.48,12.43820261]
[1735254666254,12.43820261,187.53,187.46,12.43820261]
[1735254666453,6.1494,187.56,187.45,12.43820261]
[1735254666454,12.93399562,187.52,187.45,12.43820261]
[1735254666759,12.93399562,187.55,187.48,12.43820261]
[1735254666955,12.43820261,187.54,187.47,12.43820261]
[1735254667152,12.93399562,187.53,187.46,12.43820261]
[1735254667354,18.58760261,187.56,187.49,12.43820261]
[1735254667561,6.1494,187.56,187.5,12.43820261]
[1735254667867,2.0138,187.57,187.5,12.43820261]
[1735254668667,12.43820261,187.56,187.49,12.43820261]
[1735254669655,12.93399562,187.55,187.48,12.43820261]
[1735254669847,12.43820261,187.53,187.46,12.43820261]
[1735254670042,12.43820261,187.53,187.41,8.37126279]
[1735254670043,12.93399562,187.52,187.45,12.43820261]
[1735254670244,12.43820261,187.54,187.47,12.43820261]
[1735254670450,12.43820261,187.55,187.48,12.43820261]
[1735254670869,12.43820261,187.56,187.48,12.43820261]
[1735254671170,12.43820261,187.56,187.49,12.43820261]
[1735254671861,12.43820261,187.55,187.47,12.43820261]
[1735254672456,12.43820261,187.52,187.45,12.43820261]
[1735254673051,12.43820261,187.54,187.46,12.43820261]
[1735254673265,12.93399562,187.56,187.48,12.43820261]
[1735254673442,12.93399562,187.56,187.49,12.43820261]
[1735254674055,12.93399562,187.56,187.48,12.43820261]
[1735254674271,12.43820261,187.54,187.46,12.43820261]
[1735254675172,12.93399562,187.56,187.48,12.43820261]
[1735254676061,12.43820261,187.54,187.46,12.43820261]
[1735254677270,2.50959301,187.57,187.44,12.43820261]
[1735254677271,12.43820261,187.52,187.44,12.43820261]
[1735254677467,12.43820261,187.5,187.44,12.43820261]
[1735254677672,0.49579301,187.49,187.44,12.43820261]
[1735254677873,6.0925,187.51,187.44,12.43820261]
[1735254678076,6.0925,187.51,187.45,12.43820261]
[1735254678274,0.49579301,187.5,187.44,12.43820261]
[1735254678678,0.49579301,187.5,187.43,12.43820261]
[1735254678874,12.43820261,187.47,187.4,12.43820261]
[1735254679077,0.49579301,187.46,187.4,12.43820261]
[1735254679255,12.43820261,187.48,187.41,12.43820261]
[1735254679460,14.30640261,187.49,187.42,12.43820261]
[1735254679768,12.93399562,187.48,187.41,12.43820261]
[1735254680557,12.93399562,187.48,187.4,12.43820261]
[1735254680761,12.43820261,187.45,187.34,19.35301436]
[1735254680953,0.49579301,187.48,187.34,19.35301436]
[1735254680954,12.93399562,187.44,187.37,12.43820261]
[1735254681687,1.8682,187.49,187.4,12.43820261]
[1735254681886,1.8682,187.49,187.43,12.43820261]
[1735254682230,1.8682,187.49,187.38,20.0]
[1735254682354,6.0925,187.51,187.45,12.43820261]
[1735254682550,6.0925,187.51,187.46,12.43820261]
[1735254682978,6.0925,187.51,187.45,12.43820261]
[1735254683558,6.0925,187.51,187.44,12.43820261]
[1735254684468,12.93399562,187.5,187.42,12.43820261]
[1735254684971,0.49579301,187.5,187.43,12.43820261]
[1735254685179,6.0925,187.51,187.45,12.43820261]
[1735254685474,6.0925,187.51,187.44,12.43820261]
[1735254685680,0.49579301,187.5,187.43,12.43820261]
[1735254685860,12.93399562,187.5,187.43,12.43820261]
[1735254686059,12.93399562,187.5,187.41,12.43820261]
[1735254686060,12.43820261,187.48,187.41,12.43820261]
[1735254686280,0.49579301,187.47,187.4,12.43820261]
[1735254686673,0.49579301,187.47,187.38,12.43820261]
[1735254686674,12.43820261,187.46,187.38,12.43820261]
[1735254686855,12.93399562,187.45,187.38,12.43820261]
[1735254687057,0.49579301,187.45,187.39,12.43820261]
[1735254687951,12.43820261,187.47,187.4,12.43820261]
[1735254689583,0.49579301,187.46,187.4,12.43820261]
[1735254690083,0.49579301,187.46,187.38,12.43820261]
[1735254692080,12.43820261,187.47,187.4,12.43820261]
[1735254693385,12.93399562,187.49,187.4,12.43820261]
[1735254693566,12.43820261,187.49,187.42,12.43820261]
[1735254694605,1.8682,187.53,187.47,12.43820261]
[1735254694762,12.93399562,187.57,187.5,12.43820261]
[1735254694763,1.9839,187.57,187.5,12.43820261]
[1735254695099,14.42210261,187.61,187.52,12.43820261]
[1735254695299,1.9839,187.61,187.56,12.43820261]
[1735254695466,12.43820261,187.65,187.56,12.43820261]
[1735254695793,12.43820261,187.65,187.58,12.43820261]
[1735254696186,19.86875289,187.66,187.58,19.86875289]
[1735254697598,19.86875289,187.64,187.56,19.86875289]
[1735254699165,20.3645459,187.66,187.58,19.86875289]
[1735254699364,19.86875289,187.66,187.58,19.86875289]
[1735254702531,8.1753,187.67,187.59,0.12549]
[1735254702703,8.1753,187.67,187.6,19.86875289]
[1735254703421,8.1753,187.67,187.61,0.12549]
[1735254703727,1.9839,187.67,187.61,0.12549]
[1735254704515,1.9839,187.67,187.62,19.86875289]
[1735254705228,19.86875289,187.7,187.63,19.86875289]
[1735254705395,19.86875289,187.71,187.63,19.86875289]
[1735254705598,28.04405289,187.72,187.65,19.86875289]
[1735254706218,8.1753,187.72,187.66,19.86875289]
[1735254706410,1.9839,187.72,187.66,19.86875289]
[1735254706608,21.85265289,187.72,187.65,19.86875289]
[1735254706788,21.85265289,187.72,187.62,0.12549]
[1735254706789,19.86875289,187.7,187.63,19.86875289]
[1735254707198,19.86875289,187.71,187.63,19.86875289]
[1735254707399,19.86875289,187.71,187.64,19.86875289]
[1735254707622,0.49579301,187.75,187.66,19.86875289]
[1735254707803,19.86875289,187.74,187.66,19.86875289]
[1735254708143,0.49579301,187.73,187.66,19.86875289]
[1735254708584,19.86875289,187.74,187.66,19.86875289]
[1735254709205,0.49579301,187.73,187.66,19.86875289]
[1735254709430,19.86875289,187.7,187.62,19.86875289]
[1735254709606,0.49579301,187.69,187.62,19.86875289]
[1735254710002,19.86875289,187.7,187.62,19.86875289]
[1735254710223,0.49579301,187.69,187.62,19.86875289]